Cogmind - Beta 13 @@@ ROGUE MODE // 2024.06.30 @ 02:21:20 Player: Duduxx Result: Destroyed by Y-45 Defender with Heavy Assault Rifle Performance ------------- Evolutions (1) 500 Regions Visited (4) 800 Robots Destroyed (39) 195 Value Destroyed (783) 783 Prototype IDs (1) 20 Alien Tech Used (0) 0 Bonus (0) 0 TOTAL SCORE: 2298 Bonus ------- None Cogmind --------- Core Integrity 0/400 Matter 290/300 Energy 143/275 System Corruption 0% Temperature Hot (237) Movement Treading (160) Location -9/Storage Parts ------- > --- POWER (1) -------- Deuterium Engine > --- PROPULSION (2) --- Light Treads Light Treads > --- UTILITY (4) ------ Large Storage Unit Structural Scanner Seismic Detector Recoil Stabilizer > --- WEAPON (2) ------- Small Laser Light EM Pulse Cannon > --- INVENTORY (15) --- Deuterium Engine Deuterium Engine Light Treads Terrain Scanner Recoil Stabilizer Recoil Stabilizer Grenade Launcher Mini Grenade Launcher Peak State ------------ > --- POWER ------------ Light Nuclear Core > --- PROPULSION ------- Aluminum Leg Aluminum Leg > --- UTILITY ---------- Heat Sink Large Storage Unit Hardened Light Armor Plating Hardened Light Armor Plating > --- WEAPON ----------- Advanced Beam Cannon Advanced Beam Cannon > --- INVENTORY -------- Light Ion Engine Aluminum Leg Assault Rifle Grenade Launcher Mini Grenade Launcher [Rating: 17] Favorites ----------- Power Light Nuclear Core Engine Deuterium Engine Power Core Light Nuclear Core Propulsion Aluminum Leg Treads Light Treads Leg Aluminum Leg Wheel Wheel Utility Large Storage Unit Device Terrain Scanner Storage Large Storage Unit Protection Hardened Light Armor Plating Weapon Advanced Beam Cannon Energy Gun Medium Laser Energy Cannon Advanced Beam Cannon Ballistic Gun Light Assault Rifle Launcher Mini Grenade Launcher Build | -11 -10 -10 -9 -9 ------- Run | Yrd Mat Min Mat Sto Slots Evolved 2 | . . . 2 . Power . | . . . . . Propulsion . | . . . . . Utility 2 | . . . 2 . Weapon . | . . . . . Parts Attached 44 | 6 7 3 25 3 Power 7 | 1 . 1 5 . Engine 6 | 1 . . 5 . Core 1 | . . 1 . . Reactor . | . . . . . Propulsion 9 | 2 2 . 4 1 Treads 2 | . . . 1 1 Leg 2 | . 2 . . . Wheel 5 | 2 . . 3 . Hover . | . . . . . Flight . | . . . . . Utility 11 | 1 1 2 7 . Device 8 | 1 . 2 5 . Storage 1 | . 1 . . . Processor . | . . . . . Hackware . | . . . . . Protection 2 | . . . 2 . Artifact . | . . . . . Weapon 17 | 2 4 . 9 2 Energy Gun 3 | 1 . . 1 1 Energy Cannon 6 | . 3 . 2 1 Ballistic Gun 5 | 1 . . 4 . Ballistic Cannon . | . . . . . Launcher 3 | . 1 . 2 . Special Weapon . | . . . . . Impact Weapon . | . . . . . Slashing Weapon . | . . . . . Piercing Weapon . | . . . . . Special Melee Weapon . | . . . . . Unidentified Prototypes 1 | . 1 . . . Parts Lost 16 | . . 1 13 2 Power 3 | . . . 3 . Propulsion 4 | . . . 4 . Utility 4 | . . 1 3 . Weapon 5 | . . . 3 2 Highest Loss Streak 8 | . . 1 8 1 To Critical Strikes . | . . . . . Average Slot Usage (%) 92 | . 87 99 87 99 Engine 5 | . 14 . 5 11 Core 6 | . . 13 4 . Treads 2 | . . . 1 15 Leg 12 | . 3 28 8 . Wheel 6 | . 24 . 7 6 Device 18 | . 14 13 18 33 Storage 11 | . 3 14 11 11 Protection 4 | . . . 8 . Energy Gun 3 | . 2 . 4 10 Energy Cannon 14 | . 21 28 9 . Ballistic Gun 4 | . 2 . 6 10 Naked Turns . | . . . . . Heaviest Build 44 | 8 32 34 44 35 Greatest Support 40 | 20 20 20 20 40 Greatest Overweight (x) 11 | . 1 1 11 1 Average Overweight (x) 1 | . . 1 1 . Largest Inventory Capacity 15 | 5 15 15 15 15 Average Capacity 13 | 5 7 15 15 15 Most Carried 10 | 4 5 6 9 10 Average Carried 6 | 2 4 5 6 8 Final Capacity 15 | 5 15 15 15 15 Final Carried 9 | 4 4 5 9 8 Class Distribution -------------------- 62% | Mutant 37% | Scavenger-Mutant Dominant Class ---------------- Mutant | -10/Materials Mutant | -10/Mines Scavenger-Mutant | -9/Materials Scavenger-Mutant | -9/Storage Resources | -11 -10 -10 -9 -9 ----------- Run | Yrd Mat Min Mat Sto Matter Collected 875 | 267 83 37 417 71 Remotely . | . . . . . Salvage Created 875 | 35 114 110 301 315 Parts 73 | 2 7 4 38 22 Haulers Intercepted . | . . . . . Recyclers Shooed . | . . . . . Parts Field Recycled . | . . . . . Retrieved Matter . | . . . . . Parts Self-Destructed . | . . . . . Prevented . | . . . . . Kills | -11 -10 -10 -9 -9 ------- Run | Yrd Mat Min Mat Sto Combat Hostiles Destroyed 34 | 1 5 4 15 9 Guns 16 | 1 . . 8 7 Cannons 12 | . 2 3 5 2 AOE 5 | . 3 . 2 . Classes Destroyed 6 | 1 2 . 3 . Worker 1 | . . . 1 . Builder 3 | . . . 3 . Watcher 1 | . 1 . . . Swarmer 21 | . 3 2 13 3 Grunt 10 | 1 2 2 1 4 Sentry 3 | . . . 1 2 Best Kill Streak 6 | 1 6 2 6 5 Combat Bots Only 6 | 1 5 2 6 5 Max Kills in Single Turn 2 | 1 2 1 2 1 Gunslinging . | . . . . . Exploded 2 | . 2 . 1 . Melee . | . . . . . Uniques/NPCs Destroyed . | . . . . . Combat | -11 -10 -10 -9 -9 -------- Run | Yrd Mat Min Mat Sto Hostile Shots Fired 264 | 5 18 17 172 52 Missed 74 | 2 6 4 47 15 Damage Taken 1843 | 32 99 121 1173 418 Core 456 | . 20 33 324 79 Absorbed by Shields . | . . . . . Core Remaining (%) 89 | 100 . 78 . . Volleys Fired 84 | 4 7 7 45 21 Largest 2 | 2 2 2 2 2 Hottest 136 | 60 136 136 136 96 Shots Fired 156 | 8 14 14 79 41 Gun 86 | 8 . . 43 35 Cannon 64 | . 12 14 32 6 Launcher 6 | . 2 . 4 . Special . | . . . . . Kinetic 49 | 4 . . 30 15 Thermal 91 | . 12 14 45 20 Explosive 6 | . 2 . 4 . Electromagnetic 10 | 4 . . . 6 Robot Hit Streak 13 | 2 4 7 6 13 Robot Miss Streak 7 | 1 2 1 7 2 Penetration Max . | . . . . . Secondary Targets 5 | . . . 3 2 Max Gunslinging Chain 1 | . . . 1 1 Shots Hit Robots 87 | 4 8 9 37 29 Core Hits 53 | 2 7 4 25 15 Critical Kills 2 | . . 1 1 . Critical Parts Destroyed . | . . . . . Critical Strikes 2 | . . 1 1 . Meltdown 1 | . . 1 . . Destroy 1 | . . . 1 . Melee Attacks . | . . . . . Impact . | . . . . . Slashing . | . . . . . Piercing . | . . . . . Sneak Attacks . | . . . . . Combat Hostiles . | . . . . . Follow-up Attacks . | . . . . . Damage Inflicted 1877 | 55 472 185 806 359 Guns 600 | 53 . . 284 263 Cannons 634 | . 166 185 218 65 Explosions 598 | . 306 . 261 31 Melee . | . . . . . Ramming 45 | 2 . . 43 . Kinetic 282 | 40 . . 161 81 Thermal 905 | . 166 185 341 213 Explosive 567 | . 306 . 261 . Electromagnetic 78 | 13 . . . 65 Impact . | . . . . . Slashing . | . . . . . Piercing . | . . . . . Highest Corruption . | . . . . . Average Corruption . | . . . . . Corruption Purged . | . . . . . Corruption Blocked . | . . . . . Overload Shots . | . . . . . Overflow Damage 11 | . 9 2 . . Projectiles 11 | . 9 2 . . Explosions . | . . . . . Melee . | . . . . . Knockbacks . | . . . . . Impact . | . . . . . Kinetic . | . . . . . Secondary . | . . . . . Self-Inflicted Damage 20 | 1 . . 19 . Shots . | . . . . . Rammed 6 | 2 . . 4 . Targets Rammed 6 | 2 . . 4 . Kicked . | . . . . . Crushed . | . . . . . Highest Temperature 811 | 18 153 236 811 237 Average Temperature 195 | 13 92 114 295 56 Received Heat Transfer 279 | 18 12 27 75 147 Effects 33 | . . . 33 . Shutdowns 1 | . . . 1 . Energy Bleed 2 | . . . 2 . Interference 4 | . . . 4 . Matter Decay 8 | . . . 8 . Short Circuit 3 | . . . 3 . Damage (minor) 1 | . . . 1 . Damage (major) 12 | . . . 12 . Damage (core) 2 | . . . 2 . Siege Activations . | . . . . . Robots Corrupted . | . . . . . Combat Hostiles . | . . . . . Parts Fried . | . . . . . Impact Corruptions . | . . . . . Robots Melted 1 | . . 1 . . Combat Hostiles 1 | . . 1 . . Parts Melted 5 | . . 1 2 2 Heat Transferred 1940 | . 296 333 777 534 Parts Sabotaged . | . . . . . Parts Stolen . | . . . . . Parts Stripped . | . . . . . Power Chain Reactions 1 | . . . . 1 Alert | -11 -10 -10 -9 -9 ------- Run | Yrd Mat Min Mat Sto Peak Influence 232 | 20 183 120 232 228 Initial 70 | . 13 70 25 49 Average 83 | 4 72 75 95 89 Maximum Alert Level 1 | . . . 1 1 Low Security (%) 96 | 100 100 100 93 95 Level 1 3 | . . . 6 4 Level 2 . | . . . . . Level 3 . | . . . . . Level 4 . | . . . . . Level 5 . | . . . . . High Security . | . . . . . Max Security . | . . . . . Squads Dispatched 5 | . 1 . 3 1 Investigation 2 | . 1 . . 1 Extermination . | . . . . . Reinforcement 3 | . . . 3 . Assault . | . . . . . Garrison . | . . . . . Intercept . | . . . . . Searches Triggered . | . . . . . Construction Impeded . | . . . . . Haulers Reinforced . | . . . . . Active Scanning Responses . | . . . . . Cargo Convoy Interrupts . | . . . . . Stealth | -11 -10 -10 -9 -9 --------- Run | Yrd Mat Min Mat Sto Distress Signals 2 | . 1 . 1 . Communications Jammed . | . . . . . Distress Signals . | . . . . . Times Spotted 45 | 1 7 4 23 10 Peak Tracking Total 7 | 1 6 3 7 6 Tactical Retreats 1 | . . 1 . . Traps | -11 -10 -10 -9 -9 ------- Run | Yrd Mat Min Mat Sto Traps Triggered . | . . . . . Indirectly . | . . . . . Trap Hack Attempts . | . . . . . Triggered . | . . . . . Disarmed . | . . . . . Reprogrammed . | . . . . . Reused . | . . . . . Traps Extracted . | . . . . . Installed . | . . . . . Triggered . | . . . . . Machines | -11 -10 -10 -9 -9 ---------- Run | Yrd Mat Min Mat Sto Machines Disabled 4 | . 1 . 3 . Max in Single Turn 1 | . 1 . 1 . Machines Repaired . | . . . . . Machines Dismantled . | . . . . . Machines Sabotaged . | . . . . . Overloaded Fab Kills . | . . . . . Hacking | -11 -10 -10 -9 -9 --------- Run | Yrd Mat Min Mat Sto Machines Accessed 4 | . 1 . 2 1 Terminals 4 | . 1 . 2 1 Fabricators . | . . . . . Repair Stations . | . . . . . Recycling Units . | . . . . . Scanalyzers . | . . . . . Garrison Access . | . . . . . Total Hacks 14 | . 5 . 6 3 Successful 5 | . 2 . 2 1 Failed 9 | . 3 . 4 2 Catastrophic 2 | . . . 1 1 Database Lockouts . | . . . . . Manual . | . . . . . Terminals 14 | . 5 . 6 3 Fabricators . | . . . . . Repair Stations . | . . . . . Recycling Units . | . . . . . Scanalyzers . | . . . . . Garrison Access . | . . . . . Terminal Hacks 5 | . 2 . 2 1 Emergency Access Points 1 | . 1 . . . Terminal Index 1 | . . . 1 . Locate Traps 1 | . . . . 1 Registered Components 1 | . . . 1 . Zone Layout 1 | . 1 . . . Fabricator Hacks . | . . . . . Repair Station Hacks . | . . . . . Recycling Unit Hacks . | . . . . . Scanalyzer . | . . . . . Garrison Access Hacks . | . . . . . Unauthorized Hacks . | . . . . . Terminals . | . . . . . Fabricators . | . . . . . Repair Stations . | . . . . . Recycling Units . | . . . . . Scanalyzers . | . . . . . Garrison Access . | . . . . . Data Cores Recovered . | . . . . . Used . | . . . . . Hacking Detections 4 | . 1 . 2 1 Full Trace Events 3 | . 1 . 1 1 Feedback Events . | . . . . . Feedback Blocked . | . . . . . Robot Schematics Acquired . | . . . . . Robots Built . | . . . . . Authchips . | . . . . . Time . | . . . . . Total Robot Build Rating . | . . . . . Part Schematics Acquired . | . . . . . Parts Built . | . . . . . Authchips . | . . . . . Time . | . . . . . Total Part Build Rating . | . . . . . Parts Repaired . | . . . . . Time . | . . . . . Parts Recycled . | . . . . . Recycled Matter . | . . . . . Retrieved Matter . | . . . . . Retrieved Components . | . . . . . Parts Scanalyzed . | . . . . . Part Schematics Acquired . | . . . . . Parts Damaged . | . . . . . Bothacking | -11 -10 -10 -9 -9 ------------ Run | Yrd Mat Min Mat Sto Used RIF Installer . | . . . . . Robots Hacked . | . . . . . Non-combat . | . . . . . Combat . | . . . . . Robot Hacks Applied . | . . . . . Relay Couplers Released . | . . . . . Fabnet Peak Effective % . | . . . . . Robots Rewired . | . . . . . Allies Hacked . | . . . . . Hacks Repelled . | . . . . . Allies | -11 -10 -10 -9 -9 -------- Run | Yrd Mat Min Mat Sto Total Allies . | . . . . . Largest Group . | . . . . . Highest-Rated Group . | . . . . . Highest-Rated Ally . | . . . . . Total Orders . | . . . . . Ally Attacks . | . . . . . Total Damage . | . . . . . Kills . | . . . . . Allies Corrupted . | . . . . . Allies Melted . | . . . . . Intel | -11 -10 -10 -9 -9 ------- Run | Yrd Mat Min Mat Sto Robot Analysis Total . | . . . . . Derelict Logs Recovered 1 | . . 1 . . Drone Launches . | . . . . . Drone Recoveries . | . . . . . Exploration | -11 -10 -10 -9 -9 ------------- Run | Yrd Mat Min Mat Sto Turns Passed 2312 | 95 182 652 1133 250 Spaces Moved 1218 | 93 161 329 545 90 Core 36 | 20 . . 16 . Treads 173 | . . . 83 90 Legs 510 | . 12 329 169 . Wheels 499 | 73 149 . 277 . Hover . | . . . . . Flight . | . . . . . Fastest Speed 50 | 50 80 190 95 160 Average Speed 162 | 73 89 190 176 208 Slowest Speed 600 | 80 190 190 600 240 Overloaded Moves . | . . . . . Propulsion Burnouts . | . . . . . Robots Hopped . | . . . . . Cave-ins Triggered . | . . . . . Exploration Rate (%) 32 | 9 28 75 40 11 Regions Visited 4 Branch Regions 2 Pre-discovered Areas . | . . . . . Known Exits Taken . | . . . . . Unknown Exits Taken 4 | 1 1 1 1 . Scrap Searched . | . . . . . Spaces Dug . | . . . . . Terrain Destroyed 37 | . 11 . 23 3 Melee . | . . . . . Projectile . | . . . . . AOE 37 | . 11 . 23 3 Terrain Rammed . | . . . . . Walls Destroyed . | . . . . . Machines Disabled . | . . . . . Actions | -11 -10 -10 -9 -9 --------- Run | Yrd Mat Min Mat Sto Total 1395 | 108 186 341 642 118 Wait 2 | . . 2 . . Move 1214 | 92 160 328 544 90 Hop . | . . . . . Pick Up 21 | 4 4 1 11 1 Fast Attach 23 | 6 3 . 12 2 Attach 12 | . . 1 10 1 Detach 10 | . 2 . 7 1 Swap 9 | . 4 2 3 . Drop 14 | . 6 . 6 2 Fire 84 | 4 7 7 45 21 Melee . | . . . . . Ram 5 | 2 . . 3 . Kick . | . . . . . Crush 1 | . . . 1 . Escape Stasis . | . . . . . Rewire . | . . . . . Trap . | . . . . . Miscellaneous . | . . . . . Route ------- -11/Scrapyard -10/Materials (discovered 2 exits: [*Min x2]) -10/Mines -9/Materials -9/Storage History --------- Turn | Location | Event 2 | -11/Scrapyard | Met Revision 17 64 | -11/Scrapyard | Discovered new exit (range 8) 96 | -11/Scrapyard | Entered Materials 222 | -10/Materials | Discovered new exit (range 15) 251 | -10/Materials | Discovered new exit (range 18) 278 | -10/Materials | Entered Mines 316 | -10/Mines | Build established: Mutant 361 | -10/Mines | Assembled infested the area 366 | -10/Mines | Assisted by a Guerilla fighting off Assembled 896 | -10/Mines | Discovered new exit (range 11) 918 | -10/Mines | Learned Materials security intel 930 | -10/Mines | Entered Materials 930 | -9/Materials | Evolved 2 slots: Utility x2 1423 | -9/Materials | Lost 4 parts (1p2n1u) 1608 | -9/Materials | Core integrity fell below 50% 1652 | -9/Materials | Core integrity fell below 20% 1673 | -9/Materials | Lost 8 parts (2p2n1u3w) 1777 | -9/Materials | Build established: Scavenger-Mutant 2008 | -9/Materials | Discovered new exit (range 16) 2063 | -9/Materials | Entered Storage 2313 | -9/Storage | Destroyed by Y-45 Defender with Heavy Assault Rifle Last Messages --------------- 02259_ Acquired 1 matter. 02261_ Acquired Sml. Laser. 02263_ Acquired 10 matter. 02273_ S-10 Pest destroyed. 02273_ Switching to secondary target: S-10 Pest. 02274_ R-06 Scavenger collects Aluminum Leg. 02276_ S-10 Pest destroyed. 02280_ R-06 Scavenger collects Flight Unit. 02286_ Acquired 5 matter. 02293_ K-01 Serf collects debris. 02295_ Lgt. Assault Rifle destroyed. 02299_ K-01 Serf collects debris. 02301_ G-34 Mercenary destroyed. 02303_ K-01 Serf collects debris. 02307_ Chain reaction triggered in Ion Engine. 02307_ Critical hit (Burn: +37). 02310_ K-01 Serf collects debris. 02310_ G-34 Mercenary destroyed. 02310_ Critical hit (Burn: +37). 02313_ Y-45 Defender destroyed. Map ----- +----------------------------------------------------+ | ?????????????????????????????????????????????????? | | ?????????????????????????????????????????????????? | | ?????????????????????????????????????????????????? | | ?????????????????????????????????????????????????? | | ?????????????????????????????????????????????????? | | ?????????????????????????????????????????????????? | | ?????????????????????????????????????????????????? | | ?????????????????????????????????????????????????? | | ?????????????????????????????????????????????????? | | ????????????????????????? ?????????????????????? | | ???????????????????????# #???????????????????? | | ???????????????????????## ##???????????????????? | | ???????????????????????## # ???????????????????? | | ???????????????????????## # ???????????????????? | | ???????????????????????## # ???????????????????? | | ???????????????????????##[!=; ?"?????????????????? | | ???????????????????????##[%!# ""?????????????????? | | ???????????????????????##=! # ??????????????????? | | ???????????????????????## Y# ???????????????????? | | ???????????????? ?? = # ???????????????????? | | ???????????##############== ;###########?????????? | | ??????????? ###### ######%% ############?????????? | | ??????????? # """ #=* ;# ##?????????? | | ??????????? # """ # ;# ###????????? | | ??????????? # """ # ## ###????????? | | ??????????? # % %/@ ##[ """ "##????????? | | ??????????? # %! #^% ## """ T##????????? | | ??????????? # !! # ## """ "##????????? | | ??????????? # !! # ## """ ###????????? | | ???????????############## ## """ ###????????? | | ???????????# ## ## ###????????? | | ?????????????????????? # ####+#######????????? | | ?????????????????????? # ##????????? | | ?????????????????????? + ##????????? | | ?????????????????????? # ##????????? | | ?????????????????????? # ############????????? | | ?????????????????????? ##################????????? | | ??????????????????????#########??????????????????? | | ?????????????????????????????????????????????????? | | | | | | | | | | | | | | | | | | | | | | | +----------------------------------------------------+ Best States ------------- Heat Dissipation 38 Energy Generation 14 Energy Capacity 275 Matter Stores 300 Matter Capacity 300 Sight Range 16 Terrain Scan Range 14 Terrain Scan Density 10 Armor Coverage 300 Evasion (%) 50 Recoil Reduction 6 Item Schematics ----------------- None Robot Schematics ------------------ None Fabricated ------------ Nothing Alien Tech Used ----------------- None Achievements -------------- Oops Challenges ------------ None Game ------ Seed BoreNeutronLog Manual? 0 Play Time 00:17:28 Cumulative 9.4 hours Start 2024.06.29 @ 21:35:04 End 2024.06.30 @ 02:21:20 Sessions 3 Manual Loads 0 Difficulty Rogue Special Mode None Game No. 22 Rogue 22 Adventurer 0 Explorer 0 Win Type - Total 0 Types 0/0/0/0/0/0/0/0/0 Lore% 13 Gallery% 16 Achievement% 14 Wizard Run 0 Options --------- Layout 2 ASCII 0 Keyboard 1 Movement Arrows Keybinds 0 Fullscreen 1 Font 24/Smallcaps Map View 50x44 Zoom Use 0% Tactical HUD 1 Map Filters NONE Filters NONE Steam 1 RUN: 54ae7deb-2e3e-45d4-a81f-512d37742cc9